bitfinex/quotes_BTCUSD_20240826
["timestamp","ask_amount","ask_price","bid_price","bid_amount"]
[1724668409697,0.000825,64044.0,64043.0,2.95769843]
[1724668411256,0.000825,64044.0,64043.0,2.782755]
[1724668411460,0.000825,64044.0,64043.0,2.79969858]
[1724668411665,0.000825,64044.0,64043.0,2.470465]
[1724668411870,0.000825,64044.0,64043.0,2.275165]
[1724668414326,0.000825,64044.0,64043.0,2.274165]
[1724668414742,0.000825,64044.0,64043.0,1.961875]
[1724668418764,0.000825,64044.0,64043.0,2.274165]
[1724668419392,0.000825,64044.0,64043.0,2.29110199]
[1724668419597,0.000825,64044.0,64043.0,2.274165]
[1724668420201,0.000825,64044.0,64043.0,2.29110201]
[1724668425791,0.000825,64044.0,64043.0,1.97881201]
[1724668426010,0.15700301,64044.0,64043.0,1.51037701]
[1724668426221,0.15700301,64044.0,64043.0,1.49344]
[1724668426222,0.39220301,64044.0,64043.0,1.49344]
[1724668426636,1.28088157,64044.0,64043.0,1.49344]
[1724668426838,1.28088157,64044.0,64043.0,1.48244]
[1724668427043,1.28088157,64044.0,64043.0,1.46844]
[1724668427244,1.37439019,64044.0,64043.0,1.47644]
[1724668427459,1.28088157,64044.0,64043.0,1.48744]
[1724668427609,0.86063001,64044.0,64043.0,1.47644]
[1724668427823,0.93075376,64044.0,64043.0,1.47644]
[1724668428478,0.93075376,64044.0,64043.0,1.46844]
[1724668428874,0.93275376,64044.0,64043.0,1.46944]
[1724668429065,0.83027584,64044.0,64043.0,1.46944]
[1724668429263,0.78153001,64044.0,64043.0,1.46844]
[1724668429462,0.78153001,64044.0,64043.0,1.46944]
[1724668429463,0.78353001,64044.0,64043.0,1.46944]
[1724668429623,0.78653001,64044.0,64043.0,1.46944]
[1724668429825,0.78453001,64044.0,64043.0,1.46844]
[1724668430080,0.78353001,64044.0,64043.0,1.46844]
[1724668430430,0.78453001,64044.0,64043.0,1.46844]
[1724668430635,0.78653001,64044.0,64043.0,1.46844]
[1724668431696,0.83327584,64044.0,64043.0,1.46844]
[1724668431902,0.78653001,64044.0,64043.0,1.46844]
[1724668432414,0.89449657,64044.0,64043.0,1.46844]
[1724668432591,0.96463812,64044.0,64043.0,1.46844]
[1724668433005,0.97359657,64044.0,64043.0,1.46844]
[1724668433210,1.40278415,64044.0,64043.0,1.46844]
[1724668433995,1.28588157,64044.0,64043.0,1.46844]
[1724668434225,1.40278415,64044.0,64043.0,1.46844]
[1724668434991,1.71506915,64044.0,64043.0,1.46844]
[1724668435340,1.40278415,64044.0,64043.0,1.46844]
[1724668435518,1.40278415,64044.0,64043.0,1.0]
[1724668435519,1.59816657,64044.0,64043.0,1.0]
[1724668435981,1.6327779,64044.0,64043.0,1.0]
[1724668437868,1.9450629,64044.0,64043.0,1.0]
[1724668438258,1.9420629,64044.0,64043.0,1.0]
[1724668438486,1.9420629,64044.0,64043.0,1.001]
[1724668438487,1.9490629,64044.0,64043.0,1.001]
[1724668438869,1.9420629,64044.0,64043.0,1.0]
[1724668439069,1.9400629,64044.0,64043.0,1.0]
[1724668439305,1.9470629,64044.0,64043.0,1.001]
[1724668439916,1.9510629,64044.0,64043.0,1.002]
[1724668440311,1.9470629,64044.0,64043.0,1.001]
[1724668440524,1.9540629,64044.0,64043.0,1.002]
[1724668444176,1.9540629,64044.0,64034.0,0.0009075]
[1724668444177,1.61578,64035.0,64034.0,0.0009075]
[1724668444376,1.94999807,64035.0,64034.0,0.0009075]
[1724668444586,1.90292457,64035.0,64034.0,0.0009075]
[1724668444801,3.48675357,64035.0,64034.0,0.0009075]
[1724668445064,3.5801849,64035.0,64034.0,0.0009075]
[1724668445272,3.48675357,64035.0,64034.0,0.0009075]
[1724668445473,3.58712363,64035.0,64034.0,0.0019075]
[1724668445925,3.59412363,64035.0,64034.0,0.0019075]
[1724668446128,3.64907449,64035.0,64034.0,0.0009075]
[1724668446328,3.65607449,64035.0,64034.0,0.0019075]
[1724668446531,3.7634113,64035.0,64034.0,0.0029075]
[1724668447155,3.67007449,64035.0,64034.0,0.0029075]
[1724668447534,3.76337918,64035.0,64034.0,0.0029075]
[1724668448085,3.76337717,64035.0,64034.0,0.0029075]
[1724668448502,3.67007449,64035.0,64034.0,0.0029075]
[1724668448988,3.76337717,64035.0,64034.0,0.0029075]
[1724668449384,3.67007449,64035.0,64034.0,0.0029075]
[1724668449825,3.7752439,64035.0,64034.0,0.0029075]
[1724668450029,3.99427022,64035.0,64034.0,5e-07]
[1724668451465,4.11075536,64035.0,64034.0,5e-07]
[1724668451879,3.99427022,64035.0,64034.0,5e-07]
[1724668455253,0.156198,64021.0,64020.0,0.19738803]
[1724668455493,1.91927251,64021.0,64020.0,0.19738803]
[1724668455683,2.85646351,64021.0,64020.0,0.19738803]
[1724668456572,2.86346351,64021.0,64020.0,0.19838803]
[1724668457032,2.52806651,64021.0,64020.0,0.34408803]
[1724668457655,2.53606651,64021.0,64020.0,0.34508803]
[1724668459405,2.5477406,64021.0,64020.0,0.34508803]
[1724668459615,2.5707406,64021.0,64020.0,0.00218803]
[1724668460465,2.8831376,64021.0,64020.0,0.00218803]
[1724668460906,2.5707406,64021.0,64020.0,0.00218803]
[1724668461109,2.8831376,64021.0,64020.0,0.00218803]
[1724668461533,2.5707406,64021.0,64020.0,0.09268803]
[1724668461735,2.5477406,64021.0,64020.0,0.27108803]
[1724668464834,2.53606651,64021.0,64020.0,0.27108803]
[1724668466948,1.26456701,64021.0,64020.0,0.27108803]
[1724668467360,1.26456701,64021.0,64020.0,0.00309553]
[1724668467361,1.57696401,64021.0,64020.0,0.00309553]
[1724668467571,1.59996401,64021.0,64020.0,0.00309553]
[1724668468246,1.59196401,64021.0,64020.0,0.00209553]
[1724668468372,1.60596401,64021.0,64020.0,0.00309553]
[1724668468784,1.59896401,64021.0,64020.0,0.00209553]
[1724668469184,1.61196401,64021.0,64020.0,0.00309553]
[1724668471502,1.27656701,64021.0,64020.0,0.27919553]
[1724668471852,1.58896401,64021.0,64020.0,0.00309553]
[1724668472501,1.63556259,64021.0,64020.0,0.00309553]
[1724668472883,2.90706209,64021.0,64020.0,0.00309553]
[1724668473451,2.86046351,64021.0,64020.0,0.00309553]
[1724668475587,2.93036138,64021.0,64020.0,0.00309553]
[1724668476635,2.95366068,64021.0,64020.0,0.00309553]
[1724668477585,2.97695997,64021.0,64020.0,0.00309553]
[1724668477788,3.28935697,64021.0,64020.0,0.00309553]
[1724668478357,3.17286051,64021.0,64020.0,0.00309553]
[1724668478552,3.19756051,64021.0,64020.0,0.00309553]
[1724668478755,3.22056051,64021.0,64020.0,0.00309553]
[1724668479188,3.41954017,64021.0,64020.0,0.00309553]
[1724668479390,3.55968818,64021.0,64020.0,0.00309553]
[1724668479594,3.41954017,64021.0,64020.0,0.00309553]
[1724668480927,3.73193717,64021.0,64020.0,0.00309553]
[1724668481357,3.73193717,64021.0,64020.0,5.3e-07]
[1724668482611,3.71793717,64021.0,64020.0,5.3e-07]
[1724668482781,3.74593717,64021.0,64020.0,5.3e-07]
[1724668482986,3.74411396,64021.0,64020.0,5.3e-07]
[1724668483432,3.73011396,64021.0,64020.0,5.3e-07]
[1724668483660,3.74411396,64021.0,64020.0,5.3e-07]
[1724668484623,3.74411396,64021.0,64011.0,0.1794]
[1724668484624,1.405984,64012.0,64011.0,0.1794]
[1724668484795,1.83244949,64012.0,64011.0,0.1794]
[1724668486281,1.98674971,64012.0,64011.0,0.1794]
[1724668486497,1.84644949,64012.0,64011.0,0.1794]
[1724668486935,1.406007,64011.0,64010.0,0.0009075]
[1724668487152,2.06947204,64011.0,64010.0,0.0009075]
[1724668487382,2.09247204,64011.0,64010.0,0.0009075]
[1724668487592,2.40491804,64011.0,64010.0,0.0009075]
[1724668488200,2.41891804,64011.0,64010.0,0.0009075]
[1724668488445,2.43563852,64011.0,64010.0,0.0009075]
[1724668488872,2.43563852,64011.0,64009.0,0.0009075]
[1724668488873,2.030931,64010.0,64009.0,1e-06]
[1724668489088,2.45451699,64010.0,64009.0,1e-06]
[1724668489298,2.40495004,64010.0,64009.0,1e-06]
[1724668489512,2.56274016,64010.0,64009.0,1e-06]
[1724668490136,2.57674016,64010.0,64009.0,1e-06]
[1724668490340,2.41895004,64010.0,64009.0,0.120001]
[1724668490744,3.67644954,64010.0,64009.0,0.120001]
[1724668491166,3.35499854,64010.0,64009.0,1e-06]
[1724668491590,3.36899854,64010.0,64009.0,1e-06]
[1724668491789,3.39199854,64010.0,64009.0,1e-06]
[1724668492006,3.37799854,64010.0,64009.0,1e-06]
[1724668492212,3.39199854,64010.0,64009.0,1e-06]
[1724668492415,3.37799854,64010.0,64009.0,1e-06]
[1724668494982,3.39199854,64010.0,64009.0,1e-06]
[1724668495239,3.51830011,64010.0,64009.0,1e-06]
[1724668495381,3.51830011,64010.0,64001.0,0.009075]
[1724668495382,0.156242,64003.0,64001.0,0.009075]
[1724668495608,1.89640451,64003.0,64001.0,0.009075]
[1724668495813,2.66168622,64003.0,64001.0,0.009075]
[1724668496012,3.66794396,64003.0,64001.0,0.009075]
[1724668496341,3.35545896,64003.0,64001.0,0.009075]
[1724668496700,3.36945896,64003.0,64001.0,0.009075]
[1724668496915,3.68194396,64003.0,64001.0,0.009075]
[1724668497125,3.67908924,64003.0,64001.0,0.009075]
[1724668497339,1.406227,64001.0,63969.0,0.009075]
[1724668497561,2.08115974,64001.0,63969.0,0.009075]
[1724668498200,2.39365474,64001.0,63969.0,0.009075]
[1724668498416,2.39365474,64001.0,63992.0,0.2123]
[1724668498621,2.39365474,64001.0,64000.0,0.04]
[1724668498870,2.39365474,64001.0,63992.0,0.2123]
[1724668498871,1.718937,63993.0,63992.0,0.2123]
[1724668499083,2.14540249,63993.0,63992.0,0.2123]
[1724668499459,2.26218472,63993.0,63992.0,0.2123]
[1724668499665,3.53368422,63993.0,63992.0,0.2123]
[1724668500032,3.42690199,63993.0,63992.0,0.2123]
[1724668500856,3.43590199,63993.0,63992.0,0.2123]
[1724668501600,3.55265325,63993.0,63992.0,0.2123]
[1724668502123,3.53365325,63993.0,63992.0,0.2123]
[1724668502280,3.41690199,63993.0,63992.0,0.2123]
[1724668502482,3.53582715,63993.0,63992.0,0.2123]
[1724668502729,3.42844723,63993.0,63992.0,0.2123]
[1724668502927,3.44244723,63993.0,63992.0,0.2123]
[1724668503101,3.45644723,63993.0,63992.0,0.2123]
[1724668503320,3.55919849,63993.0,63992.0,0.2123]
[1724668503528,3.44244723,63993.0,63992.0,0.2123]
[1724668503685,3.45644723,63993.0,63992.0,0.2123]
[1724668503894,3.45644723,63993.0,63992.0,0.2132086]
[1724668505171,3.54979366,63993.0,63992.0,0.2132086]
[1724668505386,3.45644723,63993.0,63992.0,0.2132086]
[1724668505860,3.14391323,63993.0,63992.0,0.2132086]
[1724668506066,3.23724706,63993.0,63992.0,0.2132086]
[1724668506445,3.213905,63993.0,63992.0,0.2132086]
[1724668507063,3.14391323,63993.0,63992.0,0.2132086]
[1724668507323,3.213905,63993.0,63992.0,0.2132086]
[1724668507529,2.87362575,63993.0,63992.0,0.2132086]
[1724668507726,2.9202832,63993.0,63992.0,0.2132086]
[1724668508184,2.87362575,63993.0,63992.0,0.2132086]
[1724668508558,3.14391323,63993.0,63992.0,0.2132086]
[1724668516121,2.87362575,63993.0,63992.0,0.2132086]
[1724668518221,2.87362575,63993.0,63992.0,0.2132086]
[1724668520124,2.98188366,63993.0,63992.0,0.2132086]
[1724668520775,3.29441766,63993.0,63992.0,0.2132086]
[1724668521349,3.29441766,63993.0,63992.0,0.1194086]
[1724668522125,3.45678824,63993.0,63992.0,0.1194086]
[1724668523358,3.45678824,63993.0,63992.0,0.0009086]
[1724668523359,3.92545392,63993.0,63992.0,0.0009086]
[1724668523557,3.63591992,63993.0,63992.0,0.0009086]
[1724668524250,3.63591992,63993.0,63984.0,0.2088]
[1724668524251,1.27149859,63988.0,63984.0,0.2088]
[1724668524423,0.312548,63990.0,63984.0,0.2088]
[1724668524424,1.2082385,63985.0,63984.0,0.2088]
[1724668524564,1.8563845,63985.0,63984.0,0.2088]
[1724668524760,2.1689575,63985.0,63984.0,0.2088]
[1724668526571,2.1819575,63985.0,63984.0,0.2088]
[1724668527182,1.8463845,63985.0,63984.0,0.2088]
[1724668527432,1.8573845,63985.0,63984.0,0.2088]
[1724668528032,1.86882009,63985.0,63984.0,0.2088]
[1724668528383,0.46224209,63985.0,63973.0,0.2055]
[1724668528620,0.156311,63975.0,63974.0,0.2014]
[1724668528820,1.25035501,63975.0,63974.0,0.2014]
[1724668529051,1.25016695,63975.0,63974.0,0.2014]
[1724668530700,1.25216695,63975.0,63974.0,0.2014]
[1724668531956,1.25316695,63975.0,63974.0,0.2014]
[1724668532753,1.38159044,63975.0,63974.0,0.2014]
[1724668533510,1.38159484,63975.0,63974.0,0.2014]
[1724668533933,1.26454098,63975.0,63974.0,0.2014]
[1724668534633,1.38156513,63975.0,63974.0,0.2014]
[1724668534808,1.38156455,63975.0,63974.0,0.2014]
[1724668535595,1.25316695,63975.0,63974.0,0.2014]
[1724668535827,1.34676811,63975.0,63974.0,0.2014]
[1724668537062,1.37019052,63975.0,63974.0,0.2014]
[1724668537263,1.25316695,63975.0,63974.0,0.2014]
[1724668538775,1.37017774,63975.0,63974.0,0.2014]
[1724668539217,1.34677277,63975.0,63974.0,0.2014]
[1724668539401,1.37017774,63975.0,63974.0,0.2014]
[1724668540012,0.25280331,63975.0,63974.0,0.2014]
[1724668540212,0.20598647,63975.0,63974.0,0.2023086]
[1724668540499,0.15917801,63975.0,63974.0,0.2023086]
[1724668540777,0.3631436,63975.0,63974.0,0.2023086]
[1724668540996,0.2068326,63975.0,63974.0,0.2023086]
[1724668541212,0.3631436,63975.0,63974.0,0.2023086]
[1724668541398,0.31631501,63975.0,63974.0,0.2023086]
[1724668542043,0.16000401,63975.0,63974.0,0.2023086]
[1724668542460,0.06110401,63975.0,63974.0,0.3586216]
[1724668542888,0.06110401,63975.0,63974.0,0.68826049]
[1724668543089,0.0936253,63985.0,63974.0,0.68826049]
[1724668543090,0.04686021,63984.0,63983.0,0.1152]
[1724668543302,0.15617801,63984.0,63983.0,0.156291]
[1724668543679,0.15617801,63984.0,63982.0,0.156293]
[1724668543917,0.4688,63986.0,63984.0,0.2096]
[1724668544121,0.4688,63986.0,63984.0,0.0944]
[1724668544122,0.625085,63986.0,63984.0,0.0944]
[1724668544427,0.4688,63986.0,63983.0,0.2096]
[1724668544622,0.625084,63986.0,63984.0,0.2096]
[1724668545031,0.625084,63986.0,63985.0,0.1152]
[1724668545262,0.631084,63986.0,63985.0,0.2096]
[1724668545811,0.4748,63986.0,63985.0,0.2096]
[1724668546404,0.4818,63986.0,63985.0,0.2096]
[1724668546681,0.4758,63986.0,63985.0,0.2096]
[1724668547071,0.4818,63986.0,63985.0,0.2096]
[1724668547272,0.013,63986.0,63985.0,0.2096]
[1724668547824,0.16917801,63986.0,63985.0,0.2096]
[1724668548607,0.16917801,63986.0,63985.0,0.365886]
[1724668548869,0.16917801,63986.0,63985.0,0.2096]
[1724668550717,0.32846201,63986.0,63985.0,0.2096]
[1724668551389,0.32746201,63986.0,63985.0,0.2096]
[1724668551616,0.32846201,63986.0,63985.0,0.2096]
[1724668552434,0.64103001,63986.0,63985.0,0.2096]
[1724668553010,0.95359801,63986.0,63985.0,0.2096]
[1724668553355,0.64103001,63986.0,63985.0,0.2096]
[1724668553779,0.64085601,63986.0,63985.0,0.2096]
[1724668553981,0.64185601,63986.0,63985.0,0.2096]
[1724668554183,0.63885601,63986.0,63985.0,0.2096]
[1724668554621,0.95142401,63986.0,63985.0,0.2096]
[1724668555497,0.95342401,63986.0,63985.0,0.2096]
[1724668555715,0.95142401,63986.0,63985.0,0.2096]
[1724668556545,0.95342401,63986.0,63985.0,0.2096]
[1724668556723,1.26599201,63986.0,63985.0,0.2096]
[1724668556941,0.95142401,63986.0,63985.0,0.2096]
[1724668557105,1.26399201,63986.0,63985.0,0.2096]
[1724668557310,1.33410964,63986.0,63985.0,0.2096]
[1724668557509,1.35748218,63986.0,63985.0,0.2096]
[1724668557921,1.3341378,63986.0,63985.0,0.2096]
[1724668558118,1.3211378,63986.0,63985.0,0.2096]
[1724668558366,1.25099201,63986.0,63985.0,0.2096]
[1724668558522,1.27699201,63986.0,63985.0,0.2096]
[1724668559102,1.34714288,63986.0,63985.0,0.2096]
[1724668559699,1.27699201,63986.0,63985.0,0.2096]
[1724668559897,1.26499201,63986.0,63985.0,0.2096]
[1724668560122,1.27699201,63986.0,63985.0,0.2096]
[1724668560285,1.34714736,63986.0,63985.0,0.2096]
[1724668560982,1.27699201,63986.0,63985.0,0.2096]
[1724668561624,1.37048218,63986.0,63985.0,0.2096]
[1724668561844,1.39385473,63986.0,63985.0,0.2096]
[1724668562086,1.27699201,63986.0,63985.0,0.2096]
[1724668562293,1.39385473,63986.0,63985.0,0.2096]
[1724668563113,1.27699201,63986.0,63985.0,0.2096]
[1724668563339,1.39385473,63986.0,63985.0,0.2096]
[1724668563531,1.27699201,63986.0,63985.0,0.2096]
[1724668564143,1.34715941,63986.0,63985.0,0.2096]
[1724668564357,1.27699201,63986.0,63985.0,0.2096]
[1724668564569,1.3471631,63986.0,63985.0,0.2096]
[1724668564772,1.37054854,63986.0,63985.0,0.2096]
[1724668565003,1.37054854,63986.0,63979.0,0.1139]
[1724668565004,1.094089,63980.0,63979.0,0.1139]
[1724668565233,1.74127607,63980.0,63979.0,0.1139]
[1724668565446,1.74127607,63980.0,63975.0,0.1139]
[1724668565447,0.468925,63976.0,63975.0,0.1139]
[1724668565650,0.73333976,63976.0,63975.0,0.1892]
[1724668565865,1.04595676,63976.0,63975.0,0.1892]
[1724668566081,1.40536053,63976.0,63975.0,0.1892]
[1724668566775,1.35857376,63976.0,63975.0,0.1892]
[1724668567205,1.67119076,63976.0,63975.0,0.1139]
[1724668567415,1.76475784,63976.0,63975.0,0.1139]
[1724668567938,1.76477054,63976.0,63975.0,0.1139]
[1724668568148,1.77829364,63976.0,63975.0,0.1148086]
[1724668568641,1.78129364,63976.0,63975.0,0.1148086]
[1724668570606,1.80578451,63976.0,63975.0,0.1148086]
[1724668571279,1.80578451,63976.0,63975.0,0.0009086]
[1724668571280,1.60396798,63976.0,63975.0,0.0009086]
[1724668571498,1.71220473,63976.0,63975.0,0.0009086]
[1724668572363,1.70920473,63976.0,63975.0,0.0009086]
[1724668572566,1.72020473,63976.0,63975.0,0.0009086]
[1724668572998,1.70720473,63976.0,63975.0,0.0009086]
[1724668573417,1.72120473,63976.0,63975.0,0.0009086]
[1724668573845,1.69671386,63976.0,63975.0,0.0009086]
[1724668574315,1.70071386,63976.0,63975.0,0.0009086]
[1724668574516,1.81762627,63976.0,63975.0,0.1957086]
[1724668575568,1.69671386,63976.0,63975.0,0.1957086]
[1724668575772,1.70871386,63976.0,63975.0,0.1957086]
[1724668575981,1.39609686,63976.0,63975.0,0.1957086]
[1724668576803,1.51300507,63976.0,63975.0,0.1957086]
[1724668578459,1.39609686,63976.0,63975.0,0.1957086]
[1724668578877,1.51300507,63976.0,63975.0,0.1957086]
[1724668579282,1.39609686,63976.0,63975.0,0.1957086]
[1724668580481,1.48961967,63976.0,63975.0,0.1957086]
[1724668582201,1.48961905,63976.0,63975.0,0.1957086]
[1724668582401,1.48961737,63976.0,63975.0,0.1957086]
[1724668585060,1.51299749,63976.0,63975.0,0.1957086]
[1724668585957,1.51300029,63976.0,63975.0,0.1957086]
[1724668586596,1.48961233,63976.0,63975.0,0.1957086]
[1724668587130,1.51300029,63976.0,63975.0,0.1957086]
[1724668587340,1.51300029,63976.0,63975.0,0.1180086]
[1724668587595,1.51298767,63976.0,63975.0,0.1180086]
[1724668587757,1.39609686,63976.0,63975.0,0.1180086]
[1724668588463,1.51298702,63976.0,63975.0,0.1180086]
[1724668588868,2.78448561,63976.0,63975.0,0.1180086]
[1724668589074,3.09710261,63976.0,63975.0,0.1180086]
[1724668589279,2.78448561,63976.0,63975.0,0.1180086]
[1724668590769,2.78448514,63976.0,63975.0,0.1180086]
[1724668591531,2.66759545,63976.0,63975.0,0.1180086]
[1724668591738,2.78448514,63976.0,63975.0,0.1180086]
[1724668592566,2.66759545,63976.0,63975.0,0.1941086]
[1724668592842,2.66842045,63976.0,63975.0,0.1941086]
[1724668593492,2.78531014,63976.0,63975.0,0.1941086]
[1724668594893,1.51381155,63976.0,63975.0,0.1941086]
[1724668596270,1.39692186,63976.0,63975.0,0.1941086]
[1724668600114,0.96454501,63976.0,63975.0,0.1941086]
[1724668600382,0.18300301,63976.0,63975.0,0.1941086]
[1724668600575,0.65192801,63976.0,63975.0,0.1941086]
[1724668600686,0.18300301,63976.0,63975.0,0.1941086]
[1724668600907,0.18300301,63976.0,63975.0,0.6630416]
[1724668601125,0.16900301,63976.0,63975.0,0.68006421]
[1724668601549,0.16900301,63976.0,63975.0,0.36744221]
[1724668601550,0.18200301,63976.0,63975.0,0.36744221]
[1724668601752,0.17000301,63976.0,63975.0,0.68006421]
[1724668602154,0.18100301,63976.0,63975.0,0.68006421]
[1724668602560,0.013825,63976.0,63975.0,0.68006421]
[1724668602766,0.000825,63976.0,63975.0,0.68006421]
[1724668602960,0.000825,63976.0,63975.0,0.68106421]
[1724668603286,0.000825,63976.0,63975.0,1.30630821]
[1724668603287,0.002825,63976.0,63975.0,1.30630821]
[1724668603456,0.002825,63976.0,63975.0,0.99368621]
[1724668603457,0.000825,63976.0,63975.0,0.99368621]
[1724668605270,0.000825,63976.0,63975.0,1.01995131]
[1724668605543,0.000825,63976.0,63975.0,0.99368621]
[1724668607323,0.000825,63976.0,63975.0,0.9936809]
[1724668612323,0.000825,63976.0,63975.0,0.9766636]
[1724668617056,0.000825,63976.0,63975.0,0.6640416]
[1724668617646,0.000825,63976.0,63975.0,0.1951086]
[1724668617849,0.157133,63976.0,63975.0,0.1951086]
[1724668617994,0.62592801,63976.0,63975.0,0.1941086]
[1724668618195,0.93854501,63976.0,63975.0,0.1180086]
[1724668618427,1.25116201,63976.0,63975.0,0.1180086]
[1724668618751,1.25216201,63976.0,63975.0,0.1180086]
[1724668618951,1.29892242,63976.0,63975.0,0.1180086]
[1724668619715,1.30092242,63976.0,63975.0,0.1180086]
[1724668619921,1.29892242,63976.0,63975.0,0.1180086]
[1724668620248,1.31092242,63976.0,63975.0,0.1180086]
[1724668620652,1.27516201,63976.0,63975.0,0.1180086]
[1724668620854,1.38339876,63976.0,63975.0,0.1180086]
[1724668621055,1.37239876,63976.0,63975.0,0.1180086]
[1724668621259,1.41917219,63976.0,63975.0,0.1933086]
[1724668621461,1.43017219,63976.0,63975.0,0.1933086]
[1724668621663,1.38339876,63976.0,63975.0,0.1933086]
[1724668622292,0.96254501,63976.0,63975.0,0.1933086]
[1724668624644,1.36172483,63976.0,63975.0,0.0009086]
[1724668625054,1.28056201,63976.0,63975.0,0.0009086]
[1724668625463,1.29056201,63976.0,63975.0,0.0009086]
[1724668626087,1.56129367,63976.0,63975.0,0.0009086]
[1724668626698,1.55129367,63976.0,63975.0,0.0009086]
[1724668626914,1.53829367,63976.0,63975.0,0.0009086]
[1724668627170,1.90542965,63976.0,63975.0,0.0009086]
[1724668627351,2.07772101,63976.0,63975.0,0.0009086]
[1724668627548,2.06572101,63976.0,63975.0,0.0009086]
[1724668627758,2.07972101,63976.0,63975.0,0.0009086]
[1724668630528,2.01822853,63976.0,63975.0,0.0009086]
[1724668630747,2.01822853,63976.0,63965.0,0.0909]
[1724668630748,1.094485,63957.0,63956.0,0.0917]
[1724668630967,0.69541581,63957.0,63956.0,0.0917]
[1724668631162,0.93795301,63957.0,63956.0,0.1683]
[1724668633478,0.95462874,63957.0,63956.0,0.1683]
[1724668633639,0.63724301,63957.0,63956.0,0.1683]
[1724668633843,0.62524301,63957.0,63956.0,0.1683]
[1724668634315,0.63224301,63957.0,63956.0,0.1683]
[1724668634517,0.63024301,63957.0,63956.0,0.1683]
[1724668634963,0.63024301,63957.0,63956.0,0.1693]
[1724668634964,0.008,63957.0,63956.0,0.1693]
[1724668635166,0.312671,63965.0,63957.0,0.1672]
[1724668635167,0.31269,63962.0,63957.0,0.1672]
[1724668635378,0.31269,63962.0,63956.0,0.157356]
[1724668635379,0.005,63957.0,63956.0,0.157356]
[1724668635598,0.005,63957.0,63956.0,0.001]
[1724668635599,0.011,63957.0,63956.0,0.001]
[1724668636009,0.011,63957.0,63956.0,0.1737]
[1724668636211,0.011,63957.0,63956.0,0.330057]
[1724668636427,0.011,63957.0,63956.0,0.955485]
[1724668636634,0.006,63957.0,63956.0,1.268199]
[1724668636839,0.625288,63971.0,63956.0,1.268199]
[1724668636840,0.312644,63971.0,63965.0,0.0959]
[1724668637048,0.156331,63967.0,63966.0,0.1667]
[1724668637384,0.15617801,63967.0,63966.0,0.1667]
[1724668637531,0.312622,63975.0,63968.0,0.001]
[1724668637532,0.01173703,63974.0,63968.0,0.001]
[1724668637743,0.62513001,63973.0,63969.0,0.1667]
[1724668637955,0.62513001,63973.0,63971.0,0.0766]
[1724668637956,0.156318,63972.0,63971.0,0.0766]
[1724668638175,0.156318,63972.0,63971.0,0.1667]
[1724668638176,0.31249601,63972.0,63971.0,0.1667]
[1724668638389,0.15617801,63972.0,63971.0,0.1667]
[1724668640337,0.31249601,63972.0,63971.0,0.1667]
[1724668640567,0.33149601,63972.0,63971.0,0.1667]
[1724668645567,0.64413201,63972.0,63971.0,0.1667]
[1724668647225,1.26940401,63972.0,63971.0,0.0901]
[1724668647853,1.26940401,63972.0,63966.0,0.0009075]
[1724668647854,1.094313,63967.0,63966.0,0.0009075]
[1724668648117,1.25049101,63967.0,63966.0,0.0009075]
[1724668648326,1.25049101,63967.0,63966.0,0.0917075]
[1724668648737,1.2972374,63967.0,63966.0,0.0917075]
[1724668649154,1.3206106,63967.0,63966.0,0.0917075]
[1724668649589,1.3206106,63967.0,63966.0,0.0009075]
[1724668649590,1.56315201,63967.0,63966.0,0.0009075]
[1724668649815,1.66464479,63967.0,63966.0,0.0009075]
[1724668650075,1.57115201,63967.0,63966.0,0.0009075]
[1724668650277,1.66266201,63967.0,63966.0,0.0009075]
[1724668650483,1.67666201,63967.0,63966.0,0.0009075]
[1724668650689,1.67047386,63967.0,63966.0,0.0009075]
[1724668650894,1.67046878,63967.0,63966.0,0.0009075]
[1724668651104,1.68346878,63967.0,63966.0,0.0009075]
[1724668651918,1.60586386,63967.0,63966.0,0.0009075]
[1724668652120,2.9942436,63967.0,63966.0,0.0009075]
[1724668652326,2.87736245,63967.0,63966.0,0.0009075]
[1724668653354,2.85036245,63967.0,63966.0,0.0009075]
[1724668653555,2.87836245,63967.0,63966.0,0.0009075]
[1724668653769,3.19102345,63967.0,63966.0,0.0009075]
[1724668653974,3.42377771,63967.0,63966.0,0.0009075]
[1724668654593,3.40977771,63967.0,63966.0,0.0009075]
[1724668654975,3.56756894,63967.0,63966.0,0.0009075]
[1724668655181,3.58156894,63967.0,63966.0,0.0009075]
[1724668655383,3.57660925,63967.0,63966.0,0.0009075]
[1724668655587,1.407213,63956.0,63955.0,0.009075]
[1724668655801,3.12061376,63956.0,63955.0,0.009075]
[1724668656175,3.12061376,63956.0,63955.0,0.107075]
[1724668656176,3.22157534,63956.0,63955.0,0.107075]
[1724668656409,3.22158544,63956.0,63955.0,0.107075]
[1724668656565,3.10471376,63956.0,63955.0,0.107075]
[1724668656774,3.22158369,63956.0,63955.0,0.107075]
[1724668656973,3.10471376,63956.0,63955.0,0.107075]
[1724668657307,3.11871376,63956.0,63955.0,0.107075]
[1724668657939,3.24858369,63956.0,63955.0,0.107075]
[1724668658301,3.13171376,63956.0,63955.0,0.107075]
[1724668658502,3.24858369,63956.0,63955.0,0.107075]
[1724668658709,3.13171376,63956.0,63955.0,0.107075]
[1724668660157,3.24857441,63956.0,63955.0,0.107075]
[1724668660358,3.13171376,63956.0,63955.0,0.107075]
[1724668660627,3.13171376,63956.0,63955.0,0.009075]
[1724668660628,3.3519705,63956.0,63955.0,0.009075]
[1724668660814,3.34656881,63956.0,63955.0,0.009075]
[1724668661198,3.28784069,63956.0,63955.0,0.009075]
[1724668661353,3.14761376,63956.0,63955.0,0.009075]
[1724668661763,3.15918805,63956.0,63955.0,0.009075]
[1724668662206,3.29941498,63956.0,63955.0,0.009075]
[1724668662406,3.15918805,63956.0,63955.0,0.009075]
[1724668663758,3.47190205,63956.0,63955.0,0.009075]
[1724668663969,3.61212898,63956.0,63955.0,0.009075]
[1724668664181,2.70006932,63956.0,63955.0,0.009075]
[1724668664314,2.65442217,63956.0,63955.0,0.105175]
[1724668664517,2.58434412,63956.0,63955.0,0.105175]
[1724668664948,2.63106163,63956.0,63955.0,0.105175]
[1724668666135,2.65442038,63956.0,63955.0,0.105175]
[1724668666340,2.65441926,63956.0,63955.0,0.105175]
[1724668668056,2.58434412,63956.0,63955.0,0.105175]
[1724668668254,2.654419,63956.0,63955.0,0.105175]
[1724668668462,2.65442347,63956.0,63955.0,0.105175]
[1724668669330,2.58434412,63956.0,63955.0,0.105175]
[1724668670287,2.65442908,63956.0,63955.0,0.105175]